bitfinex-derivatives/quotes_ETHF0:USTF0_20250411
["timestamp","ask_amount","ask_price","bid_price","bid_amount"]
[1744374088143,4.48952,1561.3,1561.2,8.416]
[1744374088434,4.48952,1561.3,1561.2,1.2818]
[1744374088635,4.48958,1561.3,1561.2,1.2818]
[1744374089140,8.39888,1561.3,1561.2,1.2818]
[1744374090040,8.39888,1561.3,1561.2,5.9428]
[1744374090641,1.2818,1561.2,1561.1,0.00963175]
[1744374090835,11.5106,1561.2,1561.1,0.00963175]
[1744374091041,16.5106,1561.2,1561.1,0.00963175]
[1744374091738,16.5106,1561.2,1561.1,4.66963175]
[1744374092140,11.5106,1561.2,1561.1,4.66963175]
[1744374092340,16.5106,1561.2,1561.1,4.66963175]
[1744374093746,11.5106,1561.2,1561.1,4.66963175]
[1744374097245,11.5106,1561.2,1561.1,5.95152175]
[1744374097550,11.5106,1561.2,1561.1,4.66963175]
[1744374098639,11.85647508,1561.2,1561.1,4.66963175]
[1744374099644,16.85647508,1561.2,1561.1,0.00963175]
[1744374099948,1.28279,1560.0,1559.9,14.97257188]
[1744374100140,4.49054,1560.1,1559.9,14.97257188]
[1744374100340,4.49054,1560.1,1560.0,5.17969]
[1744374100646,4.49054,1560.1,1560.0,9.83969]
[1744374101351,8.15524,1560.1,1560.0,9.83969]
[1744374102055,8.15524,1560.1,1560.0,8.5569]
[1744374103754,8.15524,1560.1,1560.0,4.66]
[1744374105153,11.53974,1560.1,1560.0,4.66]
[1744374106249,1.28279,1560.0,1559.9,1.29250175]
[1744374106451,5.10609,1560.0,1559.9,0.00963175]
[1744374106654,10.10609,1560.0,1559.9,0.00963175]
[1744374107061,1.28295,1559.8,1559.7,4.662]
[1744374107254,1.28304,1559.7,1559.6,40.8]
[1744374107458,1.28304,1559.7,1559.3,8.4319]
[1744374107459,3.20798,1559.6,1559.3,4.662]
[1744374107657,3.8233,1559.7,1559.3,9.71527]
[1744374107658,3.2078,1559.4,1559.3,9.71527]
[1744374107957,3.2078,1559.4,1559.3,5.94537]
[1744374108156,4.49108,1559.4,1559.3,5.94537]
[1744374108357,3.2078,1559.4,1559.3,5.94537]
[1744374108746,4.49108,1559.4,1559.3,5.94537]
[1744374109355,3.2078,1559.4,1559.2,0.00963175]
[1744374109558,5.14417,1559.3,1559.2,0.00963175]
[1744374110260,5.14417,1559.3,1559.2,4.66963175]
[1744374110557,4.50078175,1559.4,1559.2,5.95308175]
[1744374111059,1.28337,1559.3,1559.2,4.66963175]
[1744374111361,5.14417,1559.3,1559.2,4.66963175]
[1744374114861,3.21743175,1559.4,1559.2,4.66963175]
[1744374115050,3.21743175,1559.4,1559.3,1.28337]
[1744374115248,3.21743175,1559.4,1559.3,4.42427]
[1744374115452,4.50071175,1559.4,1559.3,4.42427]
[1744374115649,3.21743175,1559.4,1559.3,4.42427]
[1744374118057,4.50071175,1559.4,1559.3,4.42427]
[1744374118354,3.21743175,1559.4,1559.3,4.42427]
[1744374119962,4.50071175,1559.4,1559.3,4.42427]
[1744374120261,4.50071175,1559.4,1559.3,3.1409]
[1744374120465,1.28337,1559.3,1559.2,4.66963175]
[1744374120967,1.28337,1559.3,1559.2,5.95308175]
[1744374121265,4.50078175,1559.4,1559.3,1.28337]
[1744374121459,3.21743175,1559.4,1559.3,1.28337]
[1744374121651,4.50071175,1559.4,1559.3,1.28337]
[1744374121961,0.00963175,1559.4,1559.3,1.28337]
[1744374122163,0.00963175,1559.4,1559.3,10.12207]
[1744374123156,3.21743175,1559.4,1559.3,5.12207]
[1744374123462,0.00963175,1559.4,1559.3,5.12207]
[1744374123665,1.29291175,1559.4,1559.3,3.8387]
[1744374123960,8.43961175,1559.4,1559.3,8.5007]
[1744374124166,11.71831175,1559.4,1559.3,8.5007]
[1744374125263,11.71831175,1559.4,1559.3,9.78407]
[1744374129169,12.0648819,1559.4,1559.3,9.78407]
[1744374129467,3.5640019,1559.4,1559.3,9.78407]
[1744374129769,4.50071175,1559.4,1559.3,9.78407]
[1744374130069,4.84727534,1559.4,1559.3,4.662]
[1744374130367,4.84735276,1559.4,1559.3,4.662]
[1744374130567,4.84735507,1559.4,1559.3,4.662]
[1744374130769,8.50615507,1559.4,1559.3,5.94537]
[1744374131069,8.50615507,1559.4,1559.3,9.69657]
[1744374131367,4.84735507,1559.4,1559.3,9.69657]
[1744374131770,8.50615507,1559.4,1559.3,8.4132]
[1744374132067,8.50615507,1559.4,1559.3,9.69657]
[1744374135666,4.84735507,1559.4,1559.3,9.69657]
[1744374135865,0.00963175,1559.4,1559.3,14.69657]
[1744374136069,1.75e-06,1559.4,1559.3,18.00737]
[1744374136263,4.49069,1559.9,1559.8,1.28295]
[1744374136464,4.49069,1559.9,1559.8,5.94495]
[1744374137179,4.49069,1559.9,1559.8,9.30525]
[1744374137665,4.49069,1559.9,1559.8,13.06485]
[1744374138369,3.2078,1559.9,1559.8,13.06485]
[1744374138574,1.29242175,1560.0,1559.9,1.28287]
[1744374138866,1.29242175,1560.0,1559.9,5.04247]
[1744374139272,4.93552175,1560.0,1559.9,5.04247]
[1744374139669,1.28287,1559.9,1559.8,4.662]
[1744374139869,1.28295,1559.8,1559.7,3.9957]
[1744374140271,8.01715,1559.8,1559.7,3.9957]
[1744374140474,1.28295,1559.8,1559.7,5.27874]
[1744374140666,4.49074,1559.9,1559.8,1.28295]
[1744374140973,3.2078,1559.9,1559.8,5.27865]
[1744374141870,1.29246175,1560.0,1559.9,1.28287]
[1744374142066,1.29246175,1560.0,1559.9,9.93757]
[1744374142771,1.28304,1559.7,1559.6,7.7727]
[1744374142963,4.49084,1559.7,1559.6,4.659]
[1744374143164,1.28328,1559.4,1559.3,15.2764]
[1744374143470,4.49108,1559.4,1559.3,4.659]
[1744374144468,4.49108,1559.4,1559.3,5.94237]
[1744374144974,4.49108,1559.4,1559.3,4.659]
[1744374145370,1.28337,1559.3,1559.2,0.00963175]
[1744374145671,5.20487,1559.3,1559.2,0.00963175]
[1744374145865,10.20487,1559.3,1559.2,0.00963175]
[1744374147179,5.20487,1559.3,1559.2,0.00963175]
[1744374147571,10.20487,1559.3,1559.2,0.00963175]
[1744374147773,5.20487,1559.3,1559.2,0.00963175]
[1744374149173,5.20487,1559.3,1559.2,3.65753175]
[1744374150381,5.20487,1559.3,1559.2,0.00963175]
[1744374150587,8.36277,1559.3,1559.2,0.00963175]
[1744374150776,16.7681902,1559.3,1559.2,0.00963175]
[1744374154698,14.33816252,1559.3,1559.2,0.00963175]
[1744374155897,19.33816252,1559.3,1559.2,1.75e-06]
[1744374158197,23.99816252,1559.3,1559.2,1.75e-06]
[1744374159394,29.94597201,1559.3,1559.2,1.75e-06]
[1744374159897,24.94597201,1559.3,1559.2,1.75e-06]
[1744374160199,20.28597201,1559.3,1559.2,1.75e-06]
[1744374162604,13.20657201,1559.3,1559.2,1.75e-06]
[1744374162995,13.20657201,1559.3,1559.2,3.70070175]
[1744374163703,13.49814031,1559.3,1559.2,3.70070175]
[1744374167099,5.02147,1559.3,1559.2,1.75e-06]
[1744374170310,5.02147,1559.3,1559.2,3.80910175]
[1744374170602,17.55071088,1559.3,1559.2,3.80910175]
[1744374170903,1.28361,1559.0,1558.9,1.04725]
[1744374171208,1.28361,1559.0,1558.6,3.1377]
[1744374171209,1.28386,1558.7,1558.6,3.1377]
[1744374171408,4.49166,1558.7,1558.6,3.1377]
[1744374171800,4.49166,1558.7,1558.6,6.9468]
[1744374172303,1.28394,1558.6,1558.5,0.00963175]
[1744374172503,1.28411,1558.4,1558.3,10.05545602]
[1744374172908,8.60331,1558.4,1558.3,10.05545602]
[1744374173210,1.28419,1558.3,1558.2,13.58697965]
[1744374173410,11.82209,1558.3,1558.2,13.58697965]
[1744374173714,1.28427,1558.2,1558.1,33.19916757]
[1744374174011,1.28435,1558.1,1558.0,24.54592009]
[1744374174207,16.84115,1558.1,1558.0,10.65171017]
[1744374174413,1.28468,1557.7,1557.6,28.62811781]
[1744374174602,9.15148,1557.7,1557.6,25.44906781]
[1744374174804,14.15248,1557.7,1557.6,23.12543781]
[1744374175416,14.15248,1557.7,1557.6,19.03799781]
[1744374175710,14.15248,1557.7,1557.6,13.96180781]
[1744374176312,14.15248,1557.7,1557.6,12.46919781]
[1744374176501,14.15248,1557.7,1557.6,29.50176209]
[1744374176705,14.15248,1557.7,1557.6,18.16253428]
[1744374176914,14.15248,1557.7,1557.6,16.63736428]
[1744374177412,14.15248,1557.7,1557.6,13.26348428]
[1744374177611,17.84568,1557.7,1557.6,11.51900428]
[1744374177912,17.84568,1557.7,1557.6,7.55507428]
[1744374178412,17.84568,1557.7,1557.6,4.63338428]
[1744374178612,17.84568,1557.7,1557.6,1.47683428]
[1744374178913,12.84568,1557.7,1557.6,4.28e-06]
[1744374179114,9.15248,1557.7,1557.6,4.28e-06]
[1744374179813,1.28477,1557.6,1557.5,4.02443175]
[1744374180015,5.20347,1557.6,1557.5,4.02443175]
[1744374180208,1.28477,1557.6,1557.5,4.02443175]
[1744374180411,1.28477,1557.6,1557.5,10.4420335]
[1744374181610,1.28477,1557.6,1557.5,4.02443175]
[1744374182011,1.28477,1557.6,1557.5,10.4420335]
[1744374182207,1.28477,1557.6,1557.5,11.7268835]
[1744374182412,12.97040984,1557.7,1557.6,1.28477]
[1744374182609,11.68565984,1557.7,1557.6,11.12527175]
[1744374182809,12.97033984,1557.7,1557.6,14.84050175]
[1744374183009,4.49248,1557.7,1557.6,14.84050175]
[1744374183209,4.49248,1557.7,1557.6,9.84050175]
[1744374183405,1.28468,1557.7,1557.6,11.12527175]
[1744374183611,4.9814494,1557.8,1557.6,9.84050175]
[1744374183908,6.2660494,1557.8,1557.7,10.23430175]
[1744374184107,4.9814494,1557.8,1557.7,10.23430175]
[1744374184418,6.2660494,1557.8,1557.7,10.23430175]
[1744374184909,4.9814494,1557.8,1557.7,10.23430175]
[1744374185912,4.9814494,1557.8,1557.7,11.51898175]
[1744374186418,4.9814494,1557.8,1557.7,10.23430175]
[1744374186619,4.9814494,1557.8,1557.7,13.57770175]
[1744374186811,4.9814494,1557.8,1557.7,14.86238175]
[1744374187519,0.00963175,1557.8,1557.7,5.22725529]
[1744374188113,0.00963175,1557.8,1557.7,10.22725529]
[1744374188314,0.00963175,1557.8,1557.7,5.22725529]
[1744374188515,1.29423175,1557.8,1557.7,5.22725529]
[1744374188816,0.00963175,1557.8,1557.7,5.22725529]
[1744374189408,0.00963175,1557.8,1557.6,4.82413262]
[1744374189718,0.00963175,1557.8,1557.7,1.28468]
[1744374190718,0.00963175,1557.8,1557.7,5.36278]
[1744374191217,0.00963175,1557.8,1557.6,4.24483679]
[1744374191417,0.00963175,1557.8,1557.7,1.28468]
[1744374192520,0.00963175,1557.8,1557.7,7.95118]
[1744374194319,4.97181765,1558.1,1558.0,1.28444]
[1744374195015,4.97181765,1558.1,1558.0,5.14764]
[1744374196021,8.1892494,1558.2,1558.1,1.28435]
[1744374196214,8.1892494,1558.2,1558.1,4.76735]
[1744374197522,8.1892494,1558.2,1558.1,8.04535]
[1744374198124,4.9814494,1558.2,1558.1,8.04535]
[1744374198422,4.9814494,1558.2,1558.1,11.89155]
[1744374198822,0.00963175,1558.2,1558.1,11.89155]
[1744374199517,6.25583765,1558.5,1558.4,1.28411]
[1744374199727,9.97181765,1558.5,1558.4,1.28411]
[1744374199915,11.25583765,1558.5,1558.4,1.28411]
[1744374200113,15.02453765,1558.5,1558.4,1.28411]
[1744374200313,13.74051765,1558.5,1558.4,5.32311]
[1744374200508,9.97181765,1558.5,1558.4,5.32311]
[1744374200714,4.97181765,1558.5,1558.4,5.32311]
[1744374201912,5.18148175,1558.6,1558.5,1.28402]
[1744374202118,1.28411,1558.4,1558.3,40.80963175]
[1744374202422,1.28411,1558.4,1558.3,0.00963175]
[1744374202622,6.28411,1558.4,1558.3,0.00963175]
[1744374202927,10.17201,1558.4,1558.3,0.00963175]
[1744374203225,15.17201,1558.4,1558.3,0.00963175]
[1744374204528,10.17201,1558.4,1558.3,1.29382175]
[1744374204721,8.8879,1558.4,1558.3,1.29382175]
[1744374204922,13.85971765,1558.4,1558.3,1.29382175]
[1744374205322,13.85971765,1558.4,1558.3,5.07952175]
[1744374206028,15.14382765,1558.4,1558.3,5.07952175]
[1744374208027,10.17201,1558.4,1558.3,1.29382175]
[1744374208423,5.0,1558.4,1558.3,1.29382175]
[1744374208818,8.963,1558.4,1558.3,0.00963175]
[1744374209025,10.24711,1558.4,1558.3,0.00963175]
[1744374209219,13.56411,1558.4,1558.3,0.00963175]
[1744374210328,13.56411,1558.4,1558.3,1.29382175]
[1744374210627,10.24711,1558.4,1558.3,1.29382175]
[1744374211626,18.72437674,1558.4,1558.3,1.29382175]
[1744374212035,18.72437674,1558.4,1558.3,0.00963175]
[1744374212432,18.72437674,1558.4,1558.3,1.29382175]
[1744374212831,18.72437674,1558.4,1558.3,0.00963175]
[1744374213531,18.72437674,1558.4,1558.3,1.29382175]
[1744374213933,18.72437674,1558.4,1558.3,0.00963175]
[1744374214431,18.72437674,1558.4,1558.3,1.29382175]
[1744374214826,15.25348011,1558.4,1558.3,0.00963175]
[1744374215629,15.25348011,1558.4,1558.3,1.29382175]
[1744374215836,15.25348011,1558.4,1558.3,0.00963175]
[1744374218131,17.7611105,1558.4,1558.3,0.00963175]
[1744374219632,12.7611105,1558.4,1558.3,0.00963175]
[1744374219935,12.7611105,1558.4,1558.3,1.29382175]
[1744374220433,12.7611105,1558.4,1558.3,5.24742175]
[1744374221030,11.4770005,1558.4,1558.3,5.24742175]
[1744374221234,7.5140005,1558.4,1558.3,5.24742175]
[1744374221534,10.98187541,1558.4,1558.3,5.24742175]
[1744374221836,10.98187541,1558.4,1558.3,13.45522175]
[1744374222040,10.98187541,1558.4,1558.3,5.24742175]
[1744374222435,20.97648541,1558.4,1558.3,0.00963175]
[1744374222634,24.18428541,1558.4,1558.3,0.00963175]
[1744374224732,26.6202561,1558.4,1558.3,0.00963175]
[1744374224935,40.36766828,1558.4,1558.3,0.00963175]
[1744374225437,1.28419,1558.3,1558.2,1.28003816]
[1744374225631,3.7033,1558.3,1558.2,1.28003816]
[1744374225830,4.98749,1558.3,1558.2,5.14793816]
[1744374226234,27.16525828,1558.4,1558.3,1.28419]
[1744374226539,27.16525828,1558.4,1558.3,8.40349]
[1744374229642,31.29055828,1558.4,1558.3,8.40349]
[1744374230138,32.57466828,1558.4,1558.3,8.40349]
[1744374230338,23.35473832,1558.4,1558.1,4.77693175]
[1744374230540,23.35473832,1558.4,1558.1,3.49263175]
[1744374230541,1.28427,1558.2,1558.1,3.49263175]
[1744374231040,6.28427,1558.2,1558.1,3.49263175]
[1744374231643,6.28427,1558.2,1558.1,4.77698175]
[1744374231941,6.28427,1558.2,1558.1,3.49263175]
[1744374232335,9.49207,1558.2,1558.1,0.00963175]
[1744374232737,14.49207,1558.2,1558.1,0.00963175]
[1744374233942,9.49207,1558.2,1558.1,0.00963175]
[1744374234841,14.49207,1558.2,1558.1,0.00963175]
[1744374235346,29.03394955,1558.2,1558.1,0.00963175]
[1744374235737,33.18944955,1558.2,1558.1,0.00963175]
[1744374237448,28.18944955,1558.2,1558.1,0.00963175]
[1744374238038,1.28451,1558.0,1557.9,1.28452]
[1744374238248,3.2078,1558.0,1557.9,1.28452]
[1744374238550,3.2078,1558.0,1557.9,4.81422]
[1744374238850,15.82621955,1558.2,1557.9,7.667]
[1744374239052,1.28435,1558.1,1558.0,1.28444]
[1744374239250,5.45895,1558.1,1558.0,5.42174]
[1744374240047,14.54187955,1558.2,1558.1,1.28435]
[1744374240253,15.82614955,1558.2,1558.1,5.18635]
[1744374240550,19.63514955,1558.2,1558.0,4.49216]
[1744374240852,19.63514955,1558.2,1558.0,8.39416]
[1744374241350,1.28435,1558.1,1558.0,8.39416]
[1744374241555,5.09335,1558.1,1558.0,5.18636]
[1744374241942,3.809,1558.1,1558.0,5.18636]
[1744374242139,5.09342,1558.1,1557.9,4.82379175]
[1744374242349,5.09342,1558.1,1557.9,8.72579175]
[1744374242550,3.809,1558.0,1557.9,8.72579175]
[1744374243354,11.03017159,1558.1,1558.0,1.28444]
[1744374243555,11.03017159,1558.1,1558.0,5.08444]
[1744374244457,11.03017159,1558.1,1558.0,8.29224]
[1744374244655,11.03017159,1558.1,1558.0,5.08444]
[1744374244955,11.03017159,1558.1,1558.0,8.29224]
[1744374245159,12.31452159,1558.1,1558.0,8.29224]
[1744374245347,11.03017159,1558.1,1558.0,5.08444]
[1744374248458,8.51136568,1558.1,1558.0,5.08444]
[1744374250162,8.51136568,1558.1,1558.0,8.29224]
[1744374250459,8.51136568,1558.1,1558.0,5.08444]
[1744374251059,8.51136568,1558.1,1558.0,8.29224]
[1744374252661,8.51136568,1558.1,1558.0,2.51306664]
[1744374252851,12.50186568,1558.1,1558.0,3.79750664]
[1744374256058,18.78621568,1558.1,1558.0,1.28444]
[1744374256261,1.28444,1558.0,1557.9,0.00963175]
[1744374256457,11.61354,1558.0,1557.9,0.00963175]
[1744374256649,21.61354,1558.0,1557.9,0.00963175]
[1744374257062,21.61354,1558.0,1557.6,4.659]
[1744374257266,1.28468,1557.7,1557.6,2.99853175]
[1744374257568,1.28473,1557.7,1557.6,1.2847]
[1744374257863,3.8508,1557.7,1557.6,1.2847]
[1744374258063,5.13548,1557.7,1557.6,1.2847]
[1744374258266,3.8508,1557.7,1557.6,1.2847]
[1744374260166,14.88097159,1557.7,1557.6,1.2847]
[1744374260462,14.88097159,1557.7,1557.6,4.6544]
[1744374260766,16.16565159,1557.7,1557.6,1.2847]
[1744374262269,1.28477,1557.6,1557.5,1.29441175]
[1744374262467,5.30087,1557.6,1557.5,1.29441175]
[1744374265157,5.30087,1557.6,1557.5,0.00963175]
[1744374265362,5.30087,1557.6,1557.5,1.29448175]
[1744374266067,4.0161,1557.6,1557.5,1.29448175]
[1744374266767,4.0161,1557.6,1557.5,5.95148175]
[1744374266967,11.03017159,1557.7,1557.6,1.28477]
[1744374267164,15.13247159,1557.7,1557.6,3.02637]
[1744374267375,10.06673985,1557.7,1557.6,11.23417]
[1744374269078,8.64955985,1557.7,1557.6,11.23417]
[1744374269374,7.23368985,1557.7,1557.6,11.23417]
[1744374269975,2.16768783,1557.7,1557.6,11.23417]
[1744374270177,11.00048656,1557.8,1557.7,1.28468]
[1744374270379,5.61684439,1557.8,1557.7,6.57958]
[1744374270579,2.28585439,1557.8,1557.7,11.57958]
[1744374270772,2.28585439,1557.8,1557.7,6.57958]
[1744374271277,2.28585439,1557.8,1557.7,4.83538]
[1744374271778,0.00963175,1557.9,1557.8,1.2846]
[1744374271983,4.01933175,1557.9,1557.8,5.9416]
[1744374272677,4.01933175,1557.9,1557.8,9.1494]
[1744374272876,4.01933175,1557.9,1557.8,14.3798]
[1744374273474,4.01933175,1557.9,1557.8,19.3798]
[1744374273475,0.00963175,1557.9,1557.8,19.3798]
[1744374273979,4.03473175,1557.9,1557.8,19.3798]
[1744374274181,4.03473175,1557.9,1557.8,12.6356]
[1744374274383,4.03473175,1557.9,1557.8,14.3766]
[1744374274880,4.03473175,1557.9,1557.8,11.1688]
[1744374275074,1.28468,1557.7,1557.6,3.2078]
[1744374275384,1.28468,1557.7,1557.6,1.28472]
[1744374275887,5.30978,1557.7,1557.6,1.28472]
[1744374276083,1.28477,1557.6,1557.5,1.29441175]
[1744374276381,5.30987,1557.6,1557.5,1.29441175]
[1744374276782,4.0251,1557.6,1557.5,1.29441175]
[1744374277079,5.30987,1557.6,1557.5,1.29441175]
[1744374277283,4.0251,1557.6,1557.5,1.29441175]
[1744374277581,5.30987,1557.6,1557.5,1.29441175]
[1744374277786,10.30987,1557.6,1557.5,0.00963175]
[1744374278281,16.29310997,1557.6,1557.5,1.29448175]
[1744374279684,11.29310997,1557.6,1557.5,0.00963175]
[1744374280577,11.29310997,1557.6,1557.5,1.29448175]
[1744374281377,4.9886568,1557.6,1557.5,1.29448175]
[1744374281575,4.9886568,1557.6,1557.5,5.95248175]
[1744374282485,6.2734268,1557.6,1557.5,5.95248175]
[1744374284985,4.0251,1557.6,1557.5,5.95248175]
[1744374285190,4.0251,1557.6,1557.5,9.23908175]
[1744374286184,4.0251,1557.6,1557.5,10.98108175]
[1744374286491,4.0251,1557.6,1557.5,14.18888175]
[1744374286690,4.0251,1557.6,1557.5,19.18888175]
[1744374287188,1.28463,1557.8,1557.7,1.28468]
[1744374287394,4.1385,1557.8,1557.7,4.49248]
[1744374287584,4.1385,1557.8,1557.7,7.85268]
[1744374288194,5.4231,1557.8,1557.7,7.85268]
[1744374288393,12.94904933,1557.8,1557.7,7.85268]
[1744374289095,11.66444933,1557.8,1557.7,7.85268]
[1744374291597,12.94904933,1557.8,1557.7,7.85268]
[1744374292798,10.44117859,1557.8,1557.7,7.85268]
[1744374292999,9.15657859,1557.8,1557.7,7.85268]
[1744374295401,5.01807859,1557.8,1557.7,7.85268]
[1744374295601,8.83357859,1557.8,1557.7,9.51118]
[1744374296305,3.8155,1557.8,1557.7,9.51118]
[1744374301711,5.02771034,1557.9,1557.8,1.2846]
[1744374301923,2.14318464,1557.9,1557.8,7.5972]
[1744374302215,2.14318464,1557.9,1557.8,12.5972]
[1744374304221,0.00963175,1558.0,1557.9,1.28452]
[1744374304407,0.00963175,1558.0,1557.9,6.23822]
[1744374304607,0.00963175,1558.0,1557.9,9.44602]
[1744374306007,0.00963175,1558.0,1557.9,7.78682]
[1744374306208,0.00963175,1558.0,1557.9,9.14632]
[1744374306404,4.64337175,1558.0,1557.9,5.93852]
[1744374306616,1.28458,1557.9,1557.8,1.28454]
[1744374306916,8.34268,1557.9,1557.8,5.93854]
[1744374307214,7.0581,1557.9,1557.8,5.93854]
[1744374308412,1.28474,1557.7,1557.6,1.28469]
[1744374309119,5.11648,1557.8,1557.7,1.28468]
[1744374309619,10.11648,1557.8,1557.7,1.28468]
[1744374311319,8.8318,1557.8,1557.7,1.28468]
[1744374311526,3.8318,1557.8,1557.7,1.28468]
[1744374312519,12.32121111,1557.8,1557.7,4.48738]
[1744374313021,12.32121111,1557.8,1557.7,2.7819505]
[1744374313223,12.32121111,1557.8,1557.7,4.0666305]
[1744374313718,12.32121111,1557.8,1557.7,5.7238305]
[1744374314519,3.8318,1557.8,1557.7,5.7238305]
[1744374315222,7.53558108,1558.0,1557.9,1.28452]
[1744374315420,7.53558108,1558.0,1557.9,9.14632]
[1744374315620,7.53558108,1558.0,1557.9,14.26462]
[1744374318820,11.55398108,1558.0,1557.9,14.26462]
[1744374319832,4.02803175,1558.0,1557.9,14.26462]
[1744374324334,4.02803175,1558.0,1557.9,1.28452]
[1744374324542,4.02803175,1558.0,1557.9,4.49232]
[1744374325434,4.02803175,1558.0,1557.9,8.19192]
[1744374327619,4.02803175,1558.0,1557.9,4.49232]
[1744374327820,1.28477,1557.6,1557.5,0.00963175]
[1744374328028,4.49257,1557.6,1557.5,0.00963175]
[1744374328233,9.49257,1557.6,1557.5,0.00963175]
[1744374328626,1.28485,1557.5,1557.4,15.09909056]
[1744374328832,4.85915,1557.5,1557.4,15.09909056]
[1744374329037,9.85915,1557.5,1557.4,15.09909056]
[1744374329736,1.28493,1557.4,1557.3,16.38410056]
[1744374329933,1.28493,1557.4,1557.3,16.38068152]
[1744374330122,6.28493,1557.4,1557.3,16.38068152]
[1744374331638,9.49273,1557.4,1557.3,16.38068152]
[1744374331838,14.03163,1557.4,1557.3,16.38068152]
[1744374332041,14.03163,1557.4,1557.3,15.10872231]
[1744374332243,9.03163,1557.4,1557.3,16.39373231]
[1744374332541,9.03163,1557.4,1557.3,15.10872231]
[1744374332741,9.03163,1557.4,1557.3,16.39373231]
[1744374334041,9.03163,1557.4,1557.3,15.10872231]
[1744374334435,14.03163,1557.4,1557.3,15.10872231]
[1744374334730,14.03163,1557.4,1557.0,5.93621]
[1744374334731,1.28518,1557.1,1557.0,5.93621]
[1744374334938,1.28518,1557.1,1557.0,1.28521]
[1744374336041,5.05888,1557.1,1557.0,1.28521]
[1744374338643,1.28526,1557.0,1556.9,1.29491175]
[1744374338844,5.66086,1557.0,1556.9,1.29491175]
[1744374339050,4.3756,1557.0,1556.9,1.29491175]
[1744374340945,5.66086,1557.0,1556.9,1.29491175]
[1744374341242,9.20946,1557.0,1556.9,1.29491175]
[1744374343144,7.9242,1557.0,1556.9,1.29491175]
[1744374343533,4.3756,1557.0,1556.9,1.29491175]
[1744374346545,4.50259175,1557.2,1556.9,1.29491175]
[1744374346546,3.21743175,1557.2,1557.1,1.28518]
[1744374346748,8.91723175,1557.2,1557.1,1.28518]
[1744374347847,3.54420933,1557.4,1557.3,1.28501]
[1744374348151,9.33e-06,1557.4,1557.3,4.49281]
[1744374348351,10.05042647,1557.6,1557.5,1.28485]
[1744374348551,10.03737568,1557.6,1557.5,5.93685]
[1744374349049,10.03737568,1557.6,1557.5,10.50565]
[1744374349443,0.00963175,1557.7,1557.6,1.28477]
[1744374349643,0.00963175,1557.7,1557.6,5.82257]
[1744374352745,1.29431175,1557.7,1557.4,7.4403]
[1744374352941,3.2078,1557.6,1557.5,1.28479]
[1744374353139,0.00963175,1557.7,1557.4,11.6987]
[1744374353140,0.00963175,1557.7,1557.6,1.28477]
[1744374354041,1.29431175,1557.7,1557.6,1.28477]
[1744374354253,0.00963175,1557.7,1557.6,1.28477]
[1744374356452,1.29431175,1557.7,1557.6,1.28477]
[1744374358347,1.28477,1557.6,1557.5,5.54318]
[1744374358950,1.28485,1557.5,1557.4,1.28486]
[1744374359556,3.2078,1557.6,1557.5,1.28485]
[1744374359757,1.29435175,1557.7,1557.6,1.28477]
[1744374360059,1.28481,1557.6,1557.5,1.28478]
[1744374360255,1.29437175,1557.7,1557.6,1.28477]
[1744374360650,3.21743175,1557.7,1557.4,3.5999]
[1744374360958,1.28485,1557.5,1557.4,1.28487]
[1744374361460,1.28493,1557.4,1557.3,5.47641]
[1744374361659,4.49271,1557.5,1557.4,1.28493]
[1744374361854,3.19474921,1557.5,1557.4,1.28493]
[1744374362060,4.50211175,1557.7,1557.6,1.28477]
[1744374363058,4.50211175,1557.7,1557.6,4.90227]
[1744374365768,4.50211175,1557.7,1557.6,9.18847]
[1744374368771,1.28477,1557.6,1557.5,1.28483]
[1744374369271,1.28477,1557.6,1557.5,5.81693]
[1744374370374,4.50218175,1557.7,1557.6,1.28477]
[1744374370770,3.21743175,1557.7,1557.6,13.13827]
[1744374372174,0.00963175,1557.7,1557.6,13.13827]
[1744374373476,0.00963175,1557.7,1557.6,18.13827]
[1744374376780,0.00963175,1557.7,1557.6,13.13827]
[1744374377681,0.00963175,1557.7,1557.6,13.64925853]
[1744374378078,0.00963175,1557.7,1557.6,18.13827]
[1744374379185,0.00963175,1557.7,1557.6,13.13827]
[1744374379683,0.00963175,1557.7,1557.6,13.64254511]
[1744374379882,0.00963175,1557.7,1557.6,18.64254511]
[1744374381278,0.00963175,1557.7,1557.6,13.64254511]
[1744374388788,0.00963175,1557.7,1557.6,54.44254511]
[1744374393394,0.00963175,1557.7,1557.6,55.08494511]
[1744374393594,0.00963175,1557.7,1557.6,54.44254511]
[1744374393895,0.00963175,1557.7,1557.6,55.08494511]
[1744374394095,0.00963175,1557.7,1557.6,53.93827]
[1744374394299,1.29431175,1557.7,1557.6,42.08477]
[1744374394490,0.00963175,1557.7,1557.6,42.08477]
[1744374394685,4.33413175,1557.7,1557.6,42.08477]
[1744374394989,4.33413175,1557.7,1557.6,1.28477]
[1744374395185,8.26033175,1557.7,1557.6,1.28477]
[1744374395393,0.00963175,1557.7,1557.6,5.54567]
[1744374396098,0.00963175,1557.7,1557.6,1.28477]
[1744374396896,4.20543175,1557.7,1557.6,1.28477]
[1744374397798,4.20543175,1557.7,1557.6,5.54567]
[1744374397996,0.00963175,1557.7,1557.6,5.54567]
[1744374398589,0.97310325,1557.7,1557.6,5.54567]
[1744374399399,0.97310325,1557.7,1557.6,3.84744832]
[1744374399899,0.97310325,1557.7,1557.6,5.13221832]
[1744374401900,0.00963175,1557.7,1557.6,5.13221832]
[1744374405604,0.00963175,1557.7,1557.6,9.77521832]
[1744374405797,1.75e-06,1557.7,1557.6,9.77521832]
[1744374406707,1.75e-06,1557.7,1557.6,12.98301832]
[1744374412313,15.77158978,1558.1,1558.0,1.28444]
[1744374412511,15.77158978,1558.1,1558.0,5.92744]
[1744374416719,16.73473434,1558.1,1558.0,6.40160117]
[1744374420424,9.20584456,1558.1,1558.0,6.40160117]
[1744374422311,10.49019456,1558.1,1558.0,5.92744]
[1744374422515,15.49019456,1558.1,1558.0,5.92744]
[1744374422918,9.20584456,1558.1,1558.0,5.92744]
[1744374423317,16.73473434,1558.1,1558.0,5.92744]
[1744374423919,12.91453434,1558.1,1558.0,5.92744]
[1744374424223,6.58868434,1558.1,1558.0,9.82504]
[1744374425418,6.58868434,1558.1,1558.0,5.92744]
[1744374425626,14.26878434,1558.1,1558.0,5.92744]